Workbook

Sheet fGBM
B2: dS(t) = m S(t) dt + s S(t) dBH(t) | G2: Fractional GBM
B3: S0 | C3: 100 | G3: t | H3: z | I3: dBH | J3: SH(t) | K3: Mean(SH) | L3: dB | M3: S(t)
B4: m | C4: 0.05 | G4: 0 | H4: =NORMSINV(RAND()) -> 1.944875542 | I4: =$H4*SQRT(dt^(2*H)) -> 0.2448453242 | J4: =S0 -> 100 | K4: =NA() ->  | L4: =$H4*SQRT(dt^(2*BM)) -> 0.6150236478 | M4: =S0 -> 100
B5: s | C5: 0.25 | G5: =G4+dt -> 0.1 | H5: =NORMSINV(RAND()) -> 0.004872155393 | I5: 0.0006133680234 | J5: =J4+(mu*J4*dt)+(sigma*J4*I5) -> 100.5153342 | K5: =NA() ->  | L5: 0.001540710816 | M5: =M4+(mu*M4*dt)+(sigma*M4*L5) -> 100.5385178
B6: dt | C6: 0.1 | G6: 0.2 | H6: -1.582550838 | I6: -0.1992313466 | J6: 96.01145953 | K6: =NA() ->  | L6: -0.5004465161 | M6: 88.46267262
G7: 0.3 | H7: -0.2650773148 | I7: -0.03337125677 | J7: 95.69051106 | K7: =NA() ->  | L7: -0.08382480707 | M7: 87.05114437
B8: Hurst Coefft: 0 < H < 1 | G8: 0.4 | H8: -0.1303970919 | I8: -0.01641602126 | J8: 95.77624925 | K8: =NA() ->  | L8: -0.04123518105 | M8: 86.58900766
B9: Hurst, H | C9: 0.9 | D9: =IF(H=0.5,"Brownian Motion",IF(H<0.5,"Mean Reverting","Trending")) -> Trending | G9: 0.5 | H9: -1.716510135 | I9: -0.2160958228 | J9: 91.08091865 | K9: =AVERAGE(J5:J9) -> 95.81489453 | L9: -0.5428081652 | M9: 75.27164761
B10: GBM | C10: 0.5 | G10: 0.6 | H10: 0.4073792531 | I10: 0.0512860094 | J10: 92.70411745 | K10: 94.25265119 | L10: 0.1288246311 | M10: 78.07221641
G11: 0.7 | H11: -0.1833826138 | I11: -0.02308650327 | J11: 92.63258456 | K11: 93.57687619 | L11: -0.0579906743 | M11: 77.33071237
B12: a = 2H-1 | C12: =2*H-1 -> 0.8 | G12: 0.8 | H12: -1.076563951 | I12: -0.1355313716 | J12: 89.95709217 | K12: 92.43019242 | L12: -0.3404394133 | M12: 71.13576034
B13: Half-Life | C13: =LN(2)/H -> 0.770163534 | G13: 0.9 | H13: -1.308484566 | I13: -0.1647284471 | J13: 86.70225461 | K13: 90.61539349 | L13: -0.4137791512 | M13: 64.13281551
G14: 1 | H14: 0.9115594785 | I14: 0.1147585392 | J14: 89.6232219 | K14: 90.32385414 | L14: 0.2882604175 | M14: 69.07521763
B15: H = 0.5, Brownian Motion | G15: 1.1 | H15: 1.553812091 | I15: 0.1956133526 | J15: 94.45421274 | K15: 90.6738732 | L15: 0.4913585262 | M15: 77.905768
B16: H < 0.5, Negative Correlation (Rough) | G16: 1.2 | H16: 0.9389847338 | I16: 0.1182111743 | J16: 97.71786965 | K16: 91.69093022 | L16: 0.2969330447 | M16: 84.07849607
B17: H > 0.5, Positive Correlation (Smooth) | G17: 1.3 | H17: 0.3431925975 | I17: 0.04320538822 | J17: 99.26194363 | K17: 93.55190051 | L17: 0.1085270284 | M17: 86.78008588
G18: 1.4 | H18: 0.8808230133 | I18: 0.1108890475 | J18: 102.5100189 | K18: 96.71345337 | L18: 0.2785406938 | M18: 93.25693264
B19: Random Walk Increments | G19: 1.5 | H19: 0.6285417428 | I19: 0.07912871724 | J19: 105.0504406 | K19: 99.79889711 | L19: 0.1987623512 | M19: 98.3572091
B20: Distributions | G20: 1.6 | H20: 0.9570889856 | I20: 0.1204903645 | J20: 108.7400843 | K20: 102.6560714 | L20: 0.3026581118 | M20: 106.2911469
G21: 1.7 | H21: -1.585359353 | I21: -0.1995849177 | J21: 103.8580645 | K21: 103.8841104 | L21: -0.5013346466 | M21: 93.50074403
G22: 1.8 | H22: -0.5305472025 | I22: -0.06679193554 | J22: 102.6431345 | K22: 104.5603486 | L22: -0.1677737566 | M22: 90.04650498 | O22: Hurst Coefficient (H)
G23: 1.9 | H23: -0.67387176 | I23: -0.08483542829 | J23: 100.9794067 | K23: 104.2542261 | L23: -0.2130969612 | M23: 85.69957836 | O23: H controls the correlation between successive Brownian Motion (BM) increments.
G24: 2 | H24: 0.503812003 | I24: 0.06342617333 | J24: 103.085488 | K24: 103.8612356 | L24: 0.1593193442 | M24: 89.54147641 | O24: H has a range 0 < H < 1, where H = 0.5 indicates BM. When H < 0.5 BM increments
B25: Using Central Limit Theorem, | G25: 2.1 | H25: 0.3908618698 | I25: 0.04920659404 | J25: 104.8690369 | K25: 103.0870261 | L25: 0.1236013759 | M25: 92.75604622 | O25: are negatively correlated giving a rough effect and when H > 0.5 BM increments
G26: 2.2 | H26: -0.5638651251 | I26: -0.07098641348 | J26: 103.5323129 | K26: 103.0218758 | L26: -0.1783098088 | M26: 89.08499823 | O26: are positively correlated giving a smooth effect.
G27: 2.3 | H27: 0.2242955047 | I27: 0.02823713106 | J27: 104.7808383 | K27: 103.4494166 | L27: 0.07092846637 | M27: 91.11008879
G28: 2.4 | H28: -0.2927343958 | I28: -0.03685307697 | J28: 104.3393684 | K28: 104.1214089 | L28: -0.092570744 | M28: 89.45710706 | O28: Covariance
B29: This gives or BM and fBM respectively, | G29: 2.5 | H29: -0.661523349 | I29: -0.08328085545 | J29: 102.6886973 | K29: 104.0420508 | L29: -0.2091920508 | M29: 85.22596368
C30: and | G30: 2.6 | H30: 0.2309488772 | I30: 0.02907474103 | J30: 103.9485526 | K30: 103.8579539 | L30: 0.0730324475 | M30: 87.20815867
G31: 2.7 | H31: -1.843475033 | I31: -0.2320797566 | J31: 98.43720669 | K31: 102.8389327 | L31: -0.5829579915 | M31: 74.93452621
G32: 2.8 | H32: -0.8213799025 | I32: -0.1034056032 | J32: 96.38465303 | K32: 101.1596956 | L32: -0.2597431316 | M32: 70.44326672
G33: 2.9 | H33: 1.251529229 | I33: 0.157558195 | J33: 100.6631243 | K33: 100.4244468 | L33: 0.3957682921 | M33: 77.76528589
G34: 3 | H34: -0.1884193866 | I34: -0.02372059538 | J34: 100.5694926 | K34: 100.0006058 | L34: -0.05958344169 | M34: 76.99573147
G35: 3.1 | H35: -2.691306836 | I35: -0.3388154566 | J35: 92.55371542 | K35: 97.72163841 | L35: -0.8510659483 | M35: 60.99859883
G36: 3.2 | H36: -0.4456447482 | I36: =$H36*SQRT(dt^(2*H)) -> -0.05610334982 | J36: 91.71834063 | K36: 96.3778652 | L36: =$H36*SQRT(dt^(2*BM)) -> -0.1409252432 | M36: 59.15453123
G37: =G36+dt -> 3.3 | H37: -0.6837241213 | I37: -0.08607576709 | J37: =J36+(mu*J36*dt)+(sigma*J36*I37) -> 90.2032507 | K37: 95.14158473 | L37: -0.2162125514 | M37: =M36+(mu*M36*dt)+(sigma*M36*L37) -> 56.25281585
G38: 3.4 | H38: 0.8216628006 | I38: 0.103441218 | J38: 92.98695049 | K38: 93.60634997 | L38: 0.2598325919 | M38: 60.18815867
G39: 3.5 | H39: 1.537319463 | I39: 0.1935370538 | J39: 97.95099035 | K39: 93.08264952 | L39: 0.4861430995 | M39: 67.80411396
G40: 3.6 | H40: 2.044586413 | I40: 0.2573981792 | J40: 104.7438469 | K40: 95.52067582 | L40: 0.6465549938 | M40: 79.10290665
G41: 3.7 | H41: 0.9518164675 | I41: 0.1198265938 | J41: 108.4053408 | K41: =AVERAGE(J37:J41) -> 98.85807585 | L41: 0.3009907952 | M41: 85.45073288
G42: 3.8 | H42: -0.7516717729 | I42: -0.09462986962 | J42: 106.3827717 | K42: 102.09398 | L42: -0.2376994855 | M42: 80.80008773
G43: 3.9 | H43: 0.08694611785 | I43: 0.01094586772 | J43: 107.2057985 | K43: 104.9377496 | L43: 0.02749477661 | M43: 81.75948326
G44: 4 | H44: -0.7794201464 | I44: -0.09812318287 | J44: 105.1119839 | K44: 106.3699484 | L44: -0.2464742917 | M44: 77.130378
G45: 4.1 | H45: 0.8116965381 | I45: 0.1021865399 | J45: 108.3228013 | K45: 107.0857392 | L45: 0.2566809829 | M45: 82.4655052
G46: 4.2 | H46: 0.6306857806 | I46: 0.0793986356 | J46: 111.014586 | K46: 107.6075883 | L46: 0.1994403555 | M46: 86.98957014
G47: 4.3 | H47: 0.2786957276 | I47: 0.03508571336 | J47: 112.5434154 | K47: 108.839717 | L47: 0.08813132733 | M47: 89.34114456
G48: 4.4 | H48: -2.007070473 | I48: -0.2526752021 | J48: 105.9968999 | K48: 108.5979373 | L48: -0.6346914118 | M48: 75.61183599
G49: 4.5 | H49: 0.9374087556 | I49: 0.1180127704 | J49: 109.6541314 | K49: 109.5063668 | L49: 0.2964346766 | M49: 81.59338771
G50: 4.6 | H50: 0.5932027067 | I50: 0.07467979618 | J50: 112.2496391 | K50: 110.2917343 | L50: 0.1875871667 | M50: 85.82782275
G51: 4.7 | H51: 1.128051842 | I51: 0.142013313 | J51: 116.796123 | K51: 111.4480418 | L51: 0.356721314 | M51: 93.91111529
G52: 4.8 | H52: -0.5215739323 | I52: -0.06566226775 | J52: 115.4628291 | K52: 112.0319245 | L52: -0.1649361594 | M52: 90.5083362
G53: 4.9 | H53: -0.256634534 | I53: -0.03230837365 | J53: 115.1075392 | K53: 113.8540523 | L53: -0.08115496538 | M53: 89.12457766
G54: 5 | H54: -0.03638418273 | I54: -0.004580497223 | J54: 115.5512644 | K54: 115.033479 | L54: -0.01150568882 | M54: 89.31384063
G55: 5.1 | H55: -0.1401467804 | I55: -0.01764343432 | J55: 115.6193405 | K55: 115.7074192 | L55: -0.04431830328 | M55: 88.77085036
G56: 5.2 | H56: -0.5408591846 | I56: -0.06809013717 | J56: 114.229303 | K56: 115.1940552 | L56: -0.1710346917 | M56: 85.41898086
G57: 5.3 | H57: 0.9547188313 | I57: 0.1201919798 | J57: 118.232811 | K57: 115.7480516 | L57: 0.3019086032 | M57: 92.29325706
G58: 5.4 | H58: 0.3656437996 | I58: 0.0460318271 | J58: 120.1845931 | K58: 116.7634624 | L58: 0.1156267219 | M58: 95.42261504
G59: 5.5 | H59: 0.3105152739 | I59: 0.03909155691 | J59: 121.9600668 | K59: 118.0452229 | L59: 0.09819355139 | M59: 98.24219948
G60: 5.6 | H60: 0.4870937355 | I60: 0.06132146815 | J60: 124.4395597 | K60: 119.8092667 | L60: 0.1540325638 | M60: 102.5165349
G61: 5.7 | H61: 0.5958765361 | I61: 0.07501641136 | J61: 127.3955098 | K61: 122.4425081 | L61: 0.1884327058 | M61: 107.8584846
G62: 5.8 | H62: -2.832330629 | I62: -0.3565693003 | J62: 116.6761554 | K62: 122.131177 | L62: -0.8956615873 | M62: 84.24660167
G63: 5.9 | H63: 1.772553027 | I63: 0.2231512049 | J63: 123.7686424 | K63: 122.8479868 | L63: 0.5605304838 | M63: 96.47353178
G64: 6 | H64: -0.5626964576 | I64: -0.07083928696 | J64: 122.195565 | K64: 122.8950865 | L64: -0.1779402437 | M64: 92.6642685
G65: 6.1 | H65: 1.410271158 | I65: 0.1775426199 | J65: 128.230273 | K65: 123.6532291 | L65: 0.4459668978 | M65: 103.4588889
G66: 6.2 | H66: -0.7082012133 | I66: -0.08915725041 | J66: 126.0132597 | K66: 123.3767791 | L66: -0.2239528876 | M66: 98.18370414
G67: 6.3 | H67: 1.700040317 | I67: 0.2140223956 | J67: 133.385741 | K67: 126.7186962 | L67: 0.5375999515 | M67: 111.8705113
G68: 6.4 | H68: 1.107822001 | I68: =$H68*SQRT(dt^(2*H)) -> 0.1394665268 | J68: 138.7033812 | K68: 129.705644 | L68: =$H68*SQRT(dt^(2*BM)) -> 0.3503240764 | M68: 122.2275973
G69: =G68+dt -> 6.5 | H69: =NORMSINV(RAND()) -> -0.126158751 | I69: -0.01588244576 | J69: =J68+(mu*J68*dt)+(sigma*J68*I69) -> 138.8461609 | K69: 133.0357632 | L69: -0.0398949 | M69: =M68+(mu*M68*dt)+(sigma*M68*L69) -> 121.6196708
G70: 6.6 | H70: 1.700972217 | I70: 0.2141397149 | J70: 146.973511 | K70: 136.7844108 | L70: 0.5378946444 | M70: 138.5824115
G71: 6.7 | H71: -0.1326762412 | I71: -0.01670294916 | J71: 147.0946558 | K71: 141.00069 | L71: -0.04195591137 | M71: 137.8217358
G72: 6.8 | H72: 0.6400554816 | I72: 0.08057821108 | J72: 150.7932851 | K72: 144.4821988 | L72: 0.2024033151 | M72: 145.4847385
G73: 6.9 | H73: 0.1458977547 | I73: 0.01836743909 | J73: 152.2396732 | K73: =AVERAGE(J69:J73) -> 147.1894572 | L73: 0.04613692104 | M73: 147.8902167
G74: 7 | H74: -0.5474759357 | I74: -0.06892313678 | J74: 150.3776626 | K74: 149.4957575 | L74: -0.1731270921 | M74: 142.228717
G75: 7.1 | H75: -1.17278766 | I75: -0.1476452188 | J75: 145.5789152 | K75: 149.2168384 | L75: -0.3708680219 | M75: 129.7528398
G76: 7.2 | H76: 0.7338518491 | I76: 0.09238647413 | J76: 149.6691904 | K76: 149.7317453 | L76: 0.2320643308 | M76: 137.9293555
G77: 7.3 | H77: -0.4919899551 | I77: -0.06193786569 | J77: 148.0999888 | K77: 149.193086 | L77: -0.1555808844 | M77: 133.2542095
G78: 7.4 | H78: 0.2789088391 | I78: 0.03511254251 | J78: 150.1405305 | K78: 148.7732575 | L78: 0.0881987191 | M78: 136.8586932
G79: 7.5 | H79: 1.448470394 | I79: 0.1823516188 | J79: 157.7358254 | K79: 150.2448901 | L79: 0.458046557 | M79: 153.2149
G80: 7.6 | H80: -0.2944145533 | I80: -0.03706459627 | J80: 157.0629008 | K80: 152.5416872 | L80: -0.09310205646 | M80: 150.4148189
G81: 7.7 | H81: -0.1567485104 | I81: -0.0197334683 | J81: 157.0733664 | K81: 154.0225224 | L81: -0.04956823128 | M81: 149.3029438
G82: 7.8 | H82: -1.122096961 | I82: -0.1412636378 | J82: 152.3115444 | K82: 154.8648335 | L82: -0.3548382151 | M82: 136.804861
G83: 7.9 | H83: 2.230684176 | I83: 0.2808264995 | J83: 163.7663816 | K83: 157.5900037 | L83: 0.7054042737 | M83: 161.6145688
G84: 8 | H84: 0.4894460091 | I84: 0.06161760185 | J84: 167.1079365 | K84: 159.464426 | L84: 0.154776418 | M84: 168.6761726
G85: 8.1 | H85: 0.02956909209 | I85: 0.003722528144 | J85: 168.0989921 | K85: 161.6716442 | L85: 0.009350567935 | M85: 169.913858
G86: 8.2 | H86: -1.629482508 | I86: -0.2051396937 | J86: 160.3185432 | K86: 162.3206796 | L86: -0.5152876132 | M86: 148.8748007
G87: 8.3 | H87: -0.02557204898 | I87: -0.003219330229 | J87: 160.9911063 | K87: 164.0565919 | L87: -0.008086591922 | M87: 149.3182023
G88: 8.4 | H88: 1.259095032 | I88: 0.1585106731 | J88: 168.175764 | K88: 164.9384684 | L88: 0.398160809 | M88: 164.9279573
G89: 8.5 | H89: 0.3738080418 | I89: 0.0470596443 | J89: 170.9952157 | K89: 165.7159243 | L89: 0.118208482 | M89: 170.626568
G90: 8.6 | H90: -0.1204109198 | I90: -0.01515883668 | J90: 171.2021697 | K90: 166.3365598 | L90: -0.03807727618 | M90: 169.8554521
G91: 8.7 | H91: -2.189323729 | I91: -0.2756195278 | J91: 160.2615152 | K91: 166.3251542 | L91: -0.6923249521 | M91: 141.3059374
G92: 8.8 | H92: -1.0918514 | I92: -0.1374559474 | J92: 155.5555982 | K92: 165.2380525 | L92: -0.3452737292 | M92: 129.8151601
G93: 8.9 | H93: 1.122681106 | I93: 0.1413371774 | J93: 161.8298235 | K93: 163.9688644 | L93: 0.3550229382 | M93: 141.9860758
G94: 9 | H94: 0.4580661459 | I94: 0.05766711114 | J94: 164.9720372 | K94: 162.7642287 | L94: 0.144853234 | M94: 147.8377917
G95: 9.1 | H95: -0.5627749343 | I95: -0.07084916659 | J95: 162.8748645 | K95: 161.0987677 | L95: -0.1779650602 | M95: 141.9994903
G96: 9.2 | H96: -1.389965756 | I96: -0.1749863212 | J96: 156.5640205 | K96: 160.3592688 | L96: -0.4395457659 | M96: 127.1056691
G97: 9.3 | H97: 0.4889897918 | I97: 0.0615601675 | J97: 159.7563675 | K97: 161.1994226 | L97: 0.1546321495 | M97: 132.6548531
G98: 9.4 | H98: 2.560671003 | I98: 0.3223693797 | J98: 173.4302896 | K98: 163.5195159 | L98: 0.8097552709 | M98: 160.172619
G99: 9.5 | H99: 1.63385028 | I99: 0.2056895637 | J99: 183.2156412 | K99: 167.1682367 | L99: 0.5166688242 | M99: 181.6625318
G100: 9.6 | H100: 1.952067842 | I100: 0.2457507812 | J100: 195.3880661 | K100: 173.670877 | L100: 0.6172980528 | M100: 210.6058263
G101: 9.7 | H101: 0.9243739007 | I101: 0.1163717794 | J101: =J100+(mu*J100*dt)+(sigma*J100*I101) -> 202.0494207 | K101: 182.767957 | L101: 0.2923126936 | M101: =M100+(mu*M100*dt)+(sigma*M100*L101) -> 227.0495445
G102: 9.8 | H102: -1.116863645 | I102: -0.1406048024 | J102: 195.9573881 | K102: 190.0081611 | L102: -0.3531832953 | M102: 208.1372656
G103: 9.9 | H103: -0.6400544594 | I103: -0.08057808239 | J103: 192.9897074 | K103: 193.9200447 | L103: -0.2024029918 | M103: 198.6460506
G104: 10 | H104: -0.09799662984 | I104: -0.01233704476 | J104: 193.3594252 | K104: 195.9488015 | L104: -0.03098925533 | M104: 198.1003076
